Cogmind - Beta 10.2 @@@ ROGUE MODE // 2022.02.02 @ 17:01:21 Player: User Result: Self-destructed Performance ------------- Evolutions (1) 500 Regions Visited (2) 400 Robots Destroyed (7) 35 Value Destroyed (274) 274 Prototype IDs (5) 100 Alien Tech Used (0) 0 Bonus (0) 0 TOTAL SCORE: 1309 Bonus ------- None Cogmind --------- Core Integrity 268/400 Matter 300/300 Energy 28/100 System Corruption 0% Temperature Cool (0) Movement Rolling (90) Location -9/Materials Parts ------- > --- POWER (2) -------- (None) > --- PROPULSION (2) --- Armored Wheel Armored Wheel > --- UTILITY (3) ------ Small Storage Unit > --- WEAPON (2) ------- Light EM Pulse Cannon > --- INVENTORY (6) ---- Ion Engine Armored Wheel Armored Wheel Heat Shielding Peak State ------------ > --- POWER ------------ Light Ion Engine > --- PROPULSION ------- Armored Wheel Armored Wheel > --- UTILITY ---------- Small Storage Unit > --- WEAPON ----------- EM Pulse Gun Light Assault Rifle > --- INVENTORY -------- Light Ion Engine Armored Wheel Armored Wheel Heat Shielding EM Pulse Gun Light EM Pulse Cannon [Rating: 9] Favorites ----------- Power Light Ion Engine Engine Light Ion Engine Propulsion Armored Wheel Leg Aluminum Leg Wheel Armored Wheel Utility Small Storage Unit Storage Small Storage Unit Weapon EM Pulse Gun Energy Gun EM Pulse Gun Energy Cannon Light EM Pulse Cannon Ballistic Gun Light Assault Rifle Build | -11 -10 -9 ------- Run | Scr Mat Mat Slots Evolved 2 | . . 2 Power 1 | . . 1 Propulsion . | . . . Utility 1 | . . 1 Weapon . | . . . Parts Attached 5 | . 2 3 Power 1 | . . 1 Engine 1 | . . 1 Core . | . . . Reactor . | . . . Propulsion 2 | . 2 . Treads . | . . . Leg . | . . . Wheel 2 | . 2 . Hover . | . . . Flight . | . . . Utility . | . . . Device . | . . . Storage . | . . . Processor . | . . . Hackware . | . . . Protection . | . . . Artifact . | . . . Weapon 2 | . . 2 Energy Gun 1 | . . 1 Energy Cannon 1 | . . 1 Ballistic Gun . | . . . Ballistic Cannon . | . . . Launcher . | . . . Special Weapon . | . . . Impact Weapon . | . . . Slashing Weapon . | . . . Piercing Weapon . | . . . Special Melee Weapon . | . . . Unidentified Prototypes . | . . . Parts Lost 5 | . 1 4 Power 2 | . 1 1 Propulsion . | . . . Utility . | . . . Weapon 3 | . . 3 Highest Loss Streak 4 | . 1 4 Average Slot Usage (%) 73 | . 82 58 Engine 8 | . 11 4 Leg 1 | . 3 . Wheel 23 | . 24 22 Storage 12 | . 14 11 Energy Gun 12 | . 14 10 Ballistic Gun 12 | . 14 10 Naked Turns . | . . . Heaviest Build 10 | 10 10 10 Greatest Support 24 | 20 24 24 Greatest Overweight (x) . | . . . Average Overweight (x) . | . . . Largest Inventory Capacity 6 | 6 6 6 Average Capacity 6 | 6 6 6 Most Carried 6 | 6 6 6 Average Carried 5 | 6 5 5 Final Capacity 6 | 6 6 6 Final Carried 6 | 6 6 4 Class Distribution -------------------- 100% | Mutant Dominant Class ---------------- Mutant | -10/Materials Mutant | -9/Materials Resources | -11 -10 -9 ----------- Run | Scr Mat Mat Matter Collected 258 | 200 30 28 Remotely . | . . . Salvage Created 321 | . 182 139 Parts 12 | . 5 7 Haulers Intercepted . | . . . Recyclers Shooed 1 | . 1 . Parts Field Recycled . | . . . Retrieved Matter . | . . . Parts Self-Destructed . | . . . Prevented . | . . . Kills | -11 -10 -9 ------- Run | Scr Mat Mat Combat Hostiles Destroyed 7 | . 4 3 Guns 6 | . 4 2 Classes Destroyed 2 | . 1 1 Grunt 6 | . 4 2 Duelist 1 | . . 1 Best Kill Streak 2 | . 2 2 Combat Bots Only 2 | . 2 2 Max Kills in Single Turn 1 | . 1 1 Gunslinging . | . . . Exploded . | . . . Melee . | . . . Uniques/NPCs Destroyed . | . . . Combat | -11 -10 -9 -------- Run | Scr Mat Mat Damage Taken 649 | . 190 459 Core 142 | . 10 132 Absorbed by Shields . | . . . Core Remaining (%) 98 | 100 96 . Volleys Fired 38 | . 22 16 Largest 2 | . 2 2 Hottest 60 | . 60 60 Shots Fired 70 | . 44 26 Gun 67 | . 44 23 Cannon 3 | . . 3 Launcher . | . . . Special . | . . . Kinetic 33 | . 22 11 Thermal . | . . . Explosive . | . . . Electromagnetic 37 | . 22 15 Robot Hit Streak 9 | . 3 9 Robot Miss Streak 3 | . 3 2 Penetration Max . | . . . Secondary Targets 1 | . 1 . Max Gunslinging Chain 1 | . 1 . Shots Hit Robots 43 | . 24 19 Core Hits 15 | . 10 5 Critical Hits . | . . . Critical Kills . | . . . Critical Parts Destroyed . | . . . Melee Attacks . | . . . Impact . | . . . Slashing . | . . . Piercing . | . . . Sneak Attacks . | . . . Combat Hostiles . | . . . Follow-up Attacks . | . . . Damage Inflicted 490 | . 289 201 Guns 443 | . 261 182 Cannons 19 | . . 19 Explosions 28 | . 28 . Melee . | . . . Ramming . | . . . Kinetic 168 | . 114 54 Thermal 28 | . 28 . Explosive . | . . . Electromagnetic 294 | . 147 147 Impact . | . . . Slashing . | . . . Piercing . | . . . Highest Corruption . | . . . Average Corruption . | . . . Corruption Purged . | . . . Overload Shots . | . . . Overflow Damage . | . . . Projectiles . | . . . Explosions . | . . . Melee . | . . . Knockbacks . | . . . Impact . | . . . Kinetic . | . . . Secondary . | . . . Self-Inflicted Damage . | . . . Shots . | . . . Rammed . | . . . Targets Rammed . | . . . Kicked . | . . . Crushed . | . . . Highest Temperature 126 | . 126 23 Average Temperature 36 | . 45 10 Received Heat Transfer 174 | . 111 63 Siege Activations . | . . . Robots Corrupted 1 | . . 1 Combat Hostiles 1 | . . 1 Parts Fried 2 | . . 2 Impact Corruptions . | . . . Robots Melted . | . . . Combat Hostiles . | . . . Parts Melted . | . . . Heat Transferred 50 | . 50 . Parts Sabotaged . | . . . Parts Stolen . | . . . Parts Stripped . | . . . Power Chain Reactions 1 | . 1 . Missiles Intercepted . | . . . Alert | -11 -10 -9 ------- Run | Scr Mat Mat Peak Influence 109 | . 109 105 Initial 45 | . . 45 Average 53 | . 42 74 Maximum Alert Level . | . . . Low Security (%) 100 | 100 100 100 Level 1 . | . . . Level 2 . | . . . Level 3 . | . . . Level 4 . | . . . Level 5 . | . . . High Security . | . . . Max Security . | . . . Squads Dispatched 1 | . 1 . Investigation . | . . . Extermination . | . . . Reinforcement 1 | . 1 . Assault . | . . . Garrison . | . . . Intercept . | . . . Construction Impeded . | . . . Haulers Reinforced . | . . . Stealth | -11 -10 -9 --------- Run | Scr Mat Mat Distress Signals 1 | . . 1 Communications Jammed . | . . . Distress Signals . | . . . Times Spotted 15 | . 5 10 Peak Tracking Total 8 | . 2 8 Tactical Retreats . | . . . Traps | -11 -10 -9 ------- Run | Scr Mat Mat Traps Triggered . | . . . Indirectly . | . . . Trap Hack Attempts . | . . . Triggered . | . . . Disarmed . | . . . Reprogrammed . | . . . Reused . | . . . Traps Extracted . | . . . Installed . | . . . Triggered . | . . . Machines | -11 -10 -9 ---------- Run | Scr Mat Mat Machines Disabled 1 | . 1 . Max in Single Turn 1 | . 1 . Machines Sabotaged . | . . . Garrisons Compromised . | . . . Overloaded Fab Kills . | . . . Fab Network Shutdowns . | . . . Hacking | -11 -10 -9 --------- Run | Scr Mat Mat Machines Accessed 3 | . 1 2 Terminals 3 | . 1 2 Fabricators . | . . . Repair Stations . | . . . Recycling Units . | . . . Scanalyzers . | . . . Garrison Access . | . . . Total Hacks 12 | . 6 6 Successful 5 | . 2 3 Failed 7 | . 4 3 Catastrophic . | . . . Database Lockouts . | . . . Manual 3 | . 2 1 Terminals 12 | . 6 6 Fabricators . | . . . Repair Stations . | . . . Recycling Units . | . . . Scanalyzers . | . . . Garrison Access . | . . . Terminal Hacks 4 | . 2 2 Prototype ID Bank 2 | . 1 1 Locate Traps 1 | . 1 . Zone Layout 1 | . . 1 Fabricator Hacks . | . . . Repair Station Hacks . | . . . Recycling Unit Hacks . | . . . Scanalyzer . | . . . Garrison Access Hacks . | . . . Unauthorized Hacks 1 | . . 1 Terminals 1 | . . 1 Assimilate 1 | . . 1 Fabricators . | . . . Repair Stations . | . . . Recycling Units . | . . . Scanalyzers . | . . . Garrison Access . | . . . Data Cores Recovered . | . . . Used . | . . . Hacking Detections 3 | . 1 2 Full Trace Events . | . . . Feedback Events . | . . . Feedback Blocked . | . . . Robot Schematics Acquired . | . . . Robots Built . | . . . Matter . | . . . Time . | . . . Total Robot Build Rating . | . . . Part Schematics Acquired . | . . . Parts Built . | . . . Matter . | . . . Time . | . . . Total Part Build Rating . | . . . Parts Repaired . | . . . Time . | . . . Parts Recycled . | . . . Recycled Matter . | . . . Retrieved Matter . | . . . Retrieved Components . | . . . Parts Scanalyzed . | . . . Part Schematics Acquired . | . . . Parts Damaged . | . . . Bothacking | -11 -10 -9 ------------ Run | Scr Mat Mat Used RIF Installer . | . . . Robots Hacked . | . . . Non-combat . | . . . Combat . | . . . Robot Hacks Applied . | . . . Relay Couplers Released . | . . . Robots Rewired . | . . . Allies Hacked . | . . . Hacks Repelled . | . . . Allies | -11 -10 -9 -------- Run | Scr Mat Mat Total Allies . | . . . Largest Group . | . . . Highest-Rated Group . | . . . Highest-Rated Ally . | . . . Total Orders . | . . . Ally Attacks . | . . . Total Damage . | . . . Kills . | . . . Allies Corrupted . | . . . Allies Melted . | . . . Intel | -11 -10 -9 ------- Run | Scr Mat Mat Robot Analysis Total . | . . . Derelict Logs Recovered . | . . . Drone Launches . | . . . Drone Recoveries . | . . . Exploration | -11 -10 -9 ------------- Run | Scr Mat Mat Turns Passed 304 | 10 182 112 Spaces Moved 186 | 9 102 75 Core . | . . . Treads . | . . . Legs 21 | 9 12 . Wheels 165 | . 90 75 Hover . | . . . Flight . | . . . Fastest Speed 90 | 120 90 90 Average Speed 93 | 120 93 90 Slowest Speed 120 | 120 120 90 Overloaded Moves . | . . . Propulsion Burnouts . | . . . Robots Hopped . | . . . Cave-ins Triggered . | . . . Exploration Rate (%) 11 | 2 22 11 Regions Visited 2 Branch Regions . Pre-discovered Areas . | . . . Known Exits Taken . | . . . Unknown Exits Taken 2 | 1 1 . Scrap Searched . | . . . Spaces Dug . | . . . Terrain Destroyed 1 | . 1 . Melee . | . . . Projectile . | . . . AOE 1 | . 1 . Terrain Rammed . | . . . Walls Destroyed . | . . . Machines Disabled . | . . . Actions | -11 -10 -9 --------- Run | Scr Mat Mat Total 253 | 8 150 95 Wait 13 | . 13 . Move 184 | 8 101 75 Hop . | . . . Pick Up 7 | . 6 1 Fast Attach . | . . . Attach 3 | . . 3 Detach . | . . . Swap 2 | . 2 . Drop 6 | . 6 . Fire 38 | . 22 16 Melee . | . . . Ram . | . . . Kick . | . . . Crush . | . . . Escape Stasis . | . . . Rewire . | . . . Trap . | . . . Miscellaneous . | . . . Route ------- -11/Scrapyard -10/Materials -9/Materials History --------- Turn | Location | Event 1 | -11/Scrapyard | Discovered new exit (range 3) 11 | -11/Scrapyard | Entered Materials 181 | -10/Materials | Discovered new exit (range 14) 193 | -10/Materials | Entered another Materials area 193 | -9/Materials | Evolved 2 slots: Power x1, Utility x1 305 | -9/Materials | Self-destructed Last Messages --------------- 00246_ G-34 Mercenary destroyed. 00250_ Acquired 11 matter. 00254_ Acquired Ion Engine. 00269_ Connecting with Terminal... >>Layout(Zone) Retrieving Zone 8F layout... Downloaded map data. >>Trojan(Assimilate) Trojan loaded successfully. Testing... System interface override in place. 00282_ EM Pulse Gun destroyed. 00290_ Lgt. Assault Rifle destroyed. 00294_ S-10 Pest destroyed. 00297_ EM Pulse Gun destroyed. 00298_ Lgt. Ion Engine destroyed. 00299_ L-31 Rogue system terminally corrupted. 00299_ Melee Analysis Suite fried. 00299_ Core Shielding fried. 00300_ Acquired 17 matter. Map ----- +----------------------------------------------------+ | ?????????????????????????????????????????????????? | | ??????????????????????????????????????##########?? | | ??????????????????????????????????????# ### | | ?????????????????##########???????????# # | | ?????????????????# #???#######?# """ # | | ?????????????????# """ "" #???# #?# """"" # | | ?????????????????# """ "" ##### ### """"" + | | ?????????????????# """ T" + + """"" # | | ?????????????????# "" ##### ### """ # | | ?????????????? # """ "" #???# #?# # | | ?????????????? # """ #???## ##?#! ! [# | | ?????????????? # """ #????# =############# | | ?????????????? # #????# %+= #?# | | ?????????????? #####+####????# #%= """"" #?# | | ?????????????? #?# ####### #![ ""T"" #?# | | ??????????????###### # #?# | | ?????????????? # ###########?# | | ?????????????? # #????#####??? | | ?????????????? # ### #######????# T ??? | | ?????????????? ## ##?# #??????????# ??? | | ?????????????? ## #??# #??????????# ??? | | ?????????????? ## ####s###????????# ????? | | ?????????????? ## # #????????# ????? | | ?????????????? ## # ""#????????# ????? | | ?????????????######## # T"#????????#####????? | | ?????????? % #@!= ""#?????????????????? | | ?????????? [ *s%[ ########??????????? | | ?????????? # [ # #??????????? | | ???????????? """ """ ###+######### #??????????? | | ??????????????"" """ ## #????## #?#######????? | | ??????????????"" """ ## #????# ????? | | ?????????????? ## #????# T ????? | | ?????????????? ## #????# """ ""????? | | ?????????????? ## #????# """ ""????? | | ?????????????? ############ #????# """ ""????? | | ?????????????? #??????????# #????# ????? | | ?????????????? #??????????# #######+#########????? | | ?????????????? ############ #????##????? | | ?????????????? #????# ????? | | ?????????????? #????# ????? | | ??????????????????????????? ?????????????????????? | | ??????????????????????????? ?????????????????????? | | ??????????????????????????? ?????????????????????? | | ?????????????????????????????????????????????????? | | ?????????????????????????????????????????????????? | | ?????????????????????????????????????????????????? | | ?????????????????????????????????????????????????? | | ?????????????????????????????????????????????????? | | ?????????????????????????????????????????????????? | | ?????????????????????????????????????????????????? | +----------------------------------------------------+ Best States ------------- Heat Dissipation 28 Energy Generation 10 Energy Capacity 125 Matter Stores 300 Matter Capacity 300 Sight Range 16 Terrain Scan Density 10 Evasion (%) 42 Item Schematics ----------------- None Robot Schematics ------------------ None Fabricated ------------ Nothing Alien Tech Used ----------------- None Achievements -------------- None Challenges ------------ None Game ------ Seed CloakingInsulationExpander Manual? 0 Play Time 00:06:52 Cumulative 39.7 hours Start 2022.02.02 @ 16:34:28 End 2022.02.02 @ 17:01:21 Sessions 1 Manual Loads 0 Difficulty Rogue Special Mode None Game No. 71 Rogue 71 Adventurer 0 Explorer 0 Win Type - Total 0 Types 0/0/0/0/0/0/0/0/0 Lore% 34 Gallery% 46 Achievement% 26 Wizard Run 0 Options --------- ASCII 0 Keyboard 0 Movement Mouse Keybinds 0 Fullscreen 2 Font 20/Terminus Map View 66x50 Tactical HUD 1 Map Filters NONE Filters NONE Steam 1 RUN: b3637c73-bc05-48b5-9786-d0416543ee43